[Event "Titled Tuesday Blitz April 19 Early 2022"]
[White "Sztokbant, Bernardo Vainzoff"]
[Black "Zhu, Jiner"]
[WhiteFideId "2115956"]
[BlackFideId "8608059"]
[WhiteElo "2225"]
[BlackElo "2281"]
[Result "0-1"]
[Round "10"]
[TimeControl "180+1"]
[Date "2022.04.19"]
[WhiteClock "0:00:01"]
[BlackClock "0:00:05"]

1. e4 {[%clk 0:03:00]}  e5 {[%clk 0:02:58]} 2. Nf3 {[%clk 0:03:01]}  Nc6 {[%clk 0:02:58]} 3. Bb5 {[%clk 0:03:01]}  a6 {[%clk 0:02:58]} 4. Ba4 {[%clk 0:03:01]}  Nf6 {[%clk 0:02:58]} 5. O-O {[%clk 0:03:01]}  Be7 {[%clk 0:02:58]} 6. Re1 {[%clk 0:03:00]}  b5 {[%clk 0:02:58]} 7. Bb3 {[%clk 0:03:00]}  O-O {[%clk 0:02:59]} 8. c3 {[%clk 0:03:00]}  d5 {[%clk 0:02:59]} 9. exd5 {[%clk 0:02:58]}  Nxd5 {[%clk 0:02:59]} 10. Nxe5 {[%clk 0:02:58]}  Nxe5 {[%clk 0:02:59]} 11. Rxe5 {[%clk 0:02:58]}  c6 {[%clk 0:03:00]} 12. d3 {[%clk 0:02:58]}  Bd6 {[%clk 0:02:58]} 13. Re1 {[%clk 0:02:58]}  Qh4 {[%clk 0:02:53]} 14. g3 {[%clk 0:02:58]}  Qh3 {[%clk 0:02:53]} 15. Re4 {[%clk 0:02:56]}  Qf5 {[%clk 0:02:49]} 16. Nd2 {[%clk 0:02:54]}  Qg6 {[%clk 0:02:43]} 17. Qe2 {[%clk 0:02:46]}  Bf5 {[%clk 0:02:43]} 18. Nf3 {[%clk 0:02:32]}  Bxe4 {[%clk 0:02:24]} 19. Qxe4 {[%clk 0:02:33]}  Rfe8 {[%clk 0:02:21]} 20. Qxg6 {[%clk 0:02:27]}  hxg6 {[%clk 0:02:22]} 21. Bd2 {[%clk 0:02:24]}  Bc5 {[%clk 0:02:03]} 22. Kf1 {[%clk 0:02:21]}  Rad8 {[%clk 0:02:02]} 23. d4 {[%clk 0:02:19]}  Bd6 {[%clk 0:02:02]} 24. a4 {[%clk 0:02:19]}  Nb6 {[%clk 0:02:01]} 25. Ng5 {[%clk 0:02:12]}  Nc4 {[%clk 0:01:59]} 26. Bc1 {[%clk 0:02:05]}  Re7 {[%clk 0:01:52]} 27. axb5 {[%clk 0:02:04]}  axb5 {[%clk 0:01:49]} 28. Nf3 {[%clk 0:02:01]}  c5 {[%clk 0:01:43]} 29. Bg5 {[%clk 0:01:47]}  f6 {[%clk 0:01:38]} 30. Bc1 {[%clk 0:01:46]}  Kf8 {[%clk 0:01:37]} 31. Nh4 {[%clk 0:01:43]}  Rc7 {[%clk 0:01:27]} 32. Nxg6+ {[%clk 0:01:40]}  Kf7 {[%clk 0:01:27]} 33. Nf4 {[%clk 0:01:38]}  cxd4 {[%clk 0:01:26]} 34. cxd4 {[%clk 0:01:37]}  Bb4 {[%clk 0:01:21]} 35. Be3 {[%clk 0:01:16]}  g5 {[%clk 0:01:12]} 36. Nd3 {[%clk 0:01:16]}  Bf8 {[%clk 0:01:13]} 37. Ra5 {[%clk 0:01:13]}  Rb8 {[%clk 0:01:11]} 38. Nc5 {[%clk 0:01:00]}  Kg6 {[%clk 0:00:55]} 39. Bc2+ {[%clk 0:00:54]}  Kf7 {[%clk 0:00:53]} 40. Bb3 {[%clk 0:00:52]}  Kg6 {[%clk 0:00:51]} 41. Bc2+ {[%clk 0:00:52]}  Kh6 {[%clk 0:00:51]} 42. Ra6 {[%clk 0:00:47]}  Rb6 {[%clk 0:00:34]} 43. Rxb6 {[%clk 0:00:34]}  Nxb6 {[%clk 0:00:35]} 44. Bd3 {[%clk 0:00:30]}  Nd5 {[%clk 0:00:30]} 45. Ne6 {[%clk 0:00:24]}  Nxe3+ {[%clk 0:00:27]} 46. fxe3 {[%clk 0:00:25]}  Rc1+ {[%clk 0:00:27]} 47. Kg2 {[%clk 0:00:23]}  Bd6 {[%clk 0:00:23]} 48. g4 {[%clk 0:00:15]}  Rd1 {[%clk 0:00:21]} 49. Bxb5 {[%clk 0:00:13]}  Rd2+ {[%clk 0:00:21]} 50. Kf3 {[%clk 0:00:13]}  Rxb2 {[%clk 0:00:20]} 51. Bd3 {[%clk 0:00:08]}  Rxh2 {[%clk 0:00:21]} 52. Bf5 {[%clk 0:00:08]}  Rh1 {[%clk 0:00:18]} 53. Ke4 {[%clk 0:00:07]}  Re1 {[%clk 0:00:18]} 54. Kd5 {[%clk 0:00:07]}  Bg3 {[%clk 0:00:16]} 55. e4 {[%clk 0:00:07]}  Rd1 {[%clk 0:00:16]} 56. Nc5 {[%clk 0:00:05]}  Kg7 {[%clk 0:00:15]} 57. Ne6+ {[%clk 0:00:05]}  Kf7 {[%clk 0:00:14]} 58. Kc6 {[%clk 0:00:04]}  Ke7 {[%clk 0:00:13]} 59. d5 {[%clk 0:00:02]}  Rc1+ {[%clk 0:00:14]} 60. Kb5 {[%clk 0:00:02]}  Kd6 {[%clk 0:00:14]} 61. Kb4 {[%clk 0:00:02]}  Bf2 {[%clk 0:00:13]} 62. Kb3 {[%clk 0:00:02]}  Ke5 {[%clk 0:00:12]} 63. Nf8 {[%clk 0:00:01]}  Bd4 {[%clk 0:00:10]} 64. Nd7+ {[%clk 0:00:02]}  Kd6 {[%clk 0:00:10]} 65. Nf8 {[%clk 0:00:01]}  Rc3+ {[%clk 0:00:11]} 66. Kb4 {[%clk 0:00:01]}  Rc1 {[%clk 0:00:11]} 67. Ne6 {[%clk 0:00:02]}  Be5 {[%clk 0:00:10]} 68. Kb3 {[%clk 0:00:03]}  Rc3+ {[%clk 0:00:08]} 69. Kb4 {[%clk 0:00:03]}  Rc2 {[%clk 0:00:08]} 70. Nd8 {[%clk 0:00:03]}  Bc3+ {[%clk 0:00:04]} 71. Kb3 {[%clk 0:00:03]}  Rc1 {[%clk 0:00:05]} 72. Ne6 {[%clk 0:00:02]}  Ke5 {[%clk 0:00:05]} 73. Nf8 {[%clk 0:00:02]}  Kd4 {[%clk 0:00:05]} 74. Nd7 {[%clk 0:00:03]}  Rb1+ {[%clk 0:00:05]} 75. Kc2 {[%clk 0:00:03]}  Rb2+ {[%clk 0:00:05]} 76. Kd1 {[%clk 0:00:04]}  Ke3 {[%clk 0:00:05]} 77. Kc1 {[%clk 0:00:03]}  Rh2 {[%clk 0:00:05]} 78. Nc5 {[%clk 0:00:03]}  Kd4 {[%clk 0:00:05]} 79. Ne6+ {[%clk 0:00:03]}  Kd3 {[%clk 0:00:05]} 80. e5+ {[%clk 0:00:04]}  Ke3 {[%clk 0:00:03]} 81. d6 {[%clk 0:00:02]}  fxe5 {[%clk 0:00:03]} 82. d7 {[%clk 0:00:02]}  Ba5 {[%clk 0:00:03]} 83. d8=Q {[%clk 0:00:02]}  Bxd8 {[%clk 0:00:04]} 84. Nxd8 {[%clk 0:00:02]}  e4 {[%clk 0:00:04]} 85. Nf7 {[%clk 0:00:02]}  Kf4 {[%clk 0:00:04]} 86. Bxe4 {[%clk 0:00:02]}  Kxe4 {[%clk 0:00:04]} 87. Nxg5+ {[%clk 0:00:02]}  Kf4 {[%clk 0:00:05]} 88. Ne6+ {[%clk 0:00:02]}  Kxg4 {[%clk 0:00:05]} 89. Nd4 {[%clk 0:00:02]}  Kf4 {[%clk 0:00:05]} 90. Nc2 {[%clk 0:00:01]}  Ke4 {[%clk 0:00:05]} 0-1


[Site "https://www.chess.com"]

[Event "Titled Tuesday Blitz April 19 Early 2022"]
[White "Tanenbaum, Zachary"]
[Black "Pinheiro, Iung Alicio de O."]
[WhiteFideId "2060850"]
[BlackFideId "2104350"]
[WhiteElo "2168"]
[BlackElo "2575"]
[Result "0-1"]
[Round "10"]
[TimeControl "180+1"]
[Date "2022.04.19"]
[WhiteClock "0:01:00"]
[BlackClock "0:01:41"]

1. e4 {[%clk 0:02:59]}  c5 {[%clk 0:02:59]} 2. Nf3 {[%clk 0:03:00]}  Nc6 {[%clk 0:02:59]} 3. Nc3 {[%clk 0:03:00]}  e5 {[%clk 0:02:57]} 4. Bc4 {[%clk 0:03:00]}  Be7 {[%clk 0:02:57]} 5. d3 {[%clk 0:03:00]}  d6 {[%clk 0:02:57]} 6. Nd2 {[%clk 0:03:00]}  Bg5 {[%clk 0:02:57]} 7. Nf1 {[%clk 0:02:59]}  Bxc1 {[%clk 0:02:58]} 8. Rxc1 {[%clk 0:02:59]}  Nge7 {[%clk 0:02:58]} 9. Ne3 {[%clk 0:03:00]}  O-O {[%clk 0:02:58]} 10. O-O {[%clk 0:03:00]}  Kh8 {[%clk 0:02:59]} 11. f4 {[%clk 0:02:49]}  f5 {[%clk 0:02:49]} 12. exf5 {[%clk 0:02:28]}  Nxf5 {[%clk 0:02:42]} 13. Nxf5 {[%clk 0:02:06]}  Bxf5 {[%clk 0:02:43]} 14. g4 {[%clk 0:02:06]}  Bd7 {[%clk 0:02:36]} 15. f5 {[%clk 0:02:06]}  Nd4 {[%clk 0:02:29]} 16. Ne4 {[%clk 0:01:52]}  Bc6 {[%clk 0:02:18]} 17. a4 {[%clk 0:01:42]}  d5 {[%clk 0:02:15]} 18. Nxc5 {[%clk 0:01:36]}  dxc4 {[%clk 0:02:12]} 19. c3 {[%clk 0:01:37]}  Nb3 {[%clk 0:02:02]} 20. Nxb3 {[%clk 0:01:29]}  cxb3 {[%clk 0:02:01]} 21. Qxb3 {[%clk 0:01:15]}  Qxd3 {[%clk 0:01:59]} 22. Rce1 {[%clk 0:01:16]}  Qh3 {[%clk 0:01:53]} 23. Rf2 {[%clk 0:01:02]}  Qxg4+ {[%clk 0:01:51]} 24. Kf1 {[%clk 0:01:02]}  Rxf5 {[%clk 0:01:48]} 25. Re2 {[%clk 0:01:01]}  Raf8 {[%clk 0:01:48]} 26. Qa3 {[%clk 0:01:00]}  Qg2+ {[%clk 0:01:40]} 27. Ke1 {[%clk 0:01:00]}  Rxf2 {[%clk 0:01:40]} 28. Qxf8+ {[%clk 0:00:59]}  Rxf8 {[%clk 0:01:41]} 29. Rxg2 {[%clk 0:01:00]}  Bxg2 {[%clk 0:01:41]} 0-1


[Site "https://www.chess.com"]

[Event "Titled Tuesday Blitz April 19 Early 2022"]
[White "Thomas, Anysia"]
[Black "Markelova, Lubov"]
[WhiteFideId "670472"]
[BlackFideId "24131369"]
[WhiteElo "2002"]
[BlackElo "1857"]
[Result "1-0"]
[Round "10"]
[TimeControl "180+1"]
[Date "2022.04.19"]
[WhiteClock "0:00:17"]
[BlackClock "0:00:08"]

1. e4 {[%clk 0:03:00]}  c5 {[%clk 0:02:58]} 2. Nf3 {[%clk 0:02:55]}  d6 {[%clk 0:02:54]} 3. d4 {[%clk 0:02:55]}  cxd4 {[%clk 0:02:55]} 4. Nxd4 {[%clk 0:02:56]}  Nf6 {[%clk 0:02:55]} 5. Nc3 {[%clk 0:02:56]}  g6 {[%clk 0:02:55]} 6. Be2 {[%clk 0:02:56]}  Bg7 {[%clk 0:02:56]} 7. O-O {[%clk 0:02:56]}  O-O {[%clk 0:02:56]} 8. Be3 {[%clk 0:02:57]}  Nc6 {[%clk 0:02:55]} 9. f4 {[%clk 0:02:55]}  d5 {[%clk 0:02:54]} 10. e5 {[%clk 0:02:52]}  Ne4 {[%clk 0:02:51]} 11. Nxe4 {[%clk 0:02:46]}  dxe4 {[%clk 0:02:51]} 12. Nxc6 {[%clk 0:02:46]}  bxc6 {[%clk 0:02:49]} 13. Qe1 {[%clk 0:02:33]}  Qc7 {[%clk 0:02:43]} 14. g4 {[%clk 0:02:28]}  e6 {[%clk 0:02:42]} 15. Qg3 {[%clk 0:02:27]}  Rb8 {[%clk 0:02:39]} 16. b3 {[%clk 0:02:26]}  Rd8 {[%clk 0:02:36]} 17. Rad1 {[%clk 0:02:23]}  Bd7 {[%clk 0:02:27]} 18. Qg2 {[%clk 0:02:23]}  Qa5 {[%clk 0:02:24]} 19. Qxe4 {[%clk 0:02:17]}  Qxa2 {[%clk 0:02:21]} 20. Bc4 {[%clk 0:02:13]}  Qa5 {[%clk 0:02:15]} 21. Bd4 {[%clk 0:02:01]}  c5 {[%clk 0:02:11]} 22. Be3 {[%clk 0:01:57]}  Bb5 {[%clk 0:02:06]} 23. f5 {[%clk 0:01:42]}  Bxc4 {[%clk 0:02:00]} 24. Qxc4 {[%clk 0:01:41]}  Rb4 {[%clk 0:01:40]} 25. Qxc5 {[%clk 0:01:34]}  Rxg4+ {[%clk 0:01:26]} 26. Kh1 {[%clk 0:01:29]}  Rxd1 {[%clk 0:01:14]} 27. Rxd1 {[%clk 0:01:12]}  Qxc5 {[%clk 0:01:08]} 28. Bxc5 {[%clk 0:01:11]}  Bxe5 {[%clk 0:00:57]} 29. fxe6 {[%clk 0:01:05]}  fxe6 {[%clk 0:00:54]} 30. Rd8+ {[%clk 0:01:02]}  Kf7 {[%clk 0:00:51]} 31. Rd7+ {[%clk 0:01:02]}  Kf6 {[%clk 0:00:47]} 32. Rxh7 {[%clk 0:00:59]}  a5 {[%clk 0:00:37]} 33. Ra7 {[%clk 0:00:45]}  Bc3 {[%clk 0:00:34]} 34. Bb6 {[%clk 0:00:36]}  Re4 {[%clk 0:00:19]} 35. Bd8+ {[%clk 0:00:27]}  Kf5 {[%clk 0:00:15]} 36. Bxa5 {[%clk 0:00:22]}  Re1+ {[%clk 0:00:14]} 37. Kg2 {[%clk 0:00:22]}  Bd2 {[%clk 0:00:12]} 38. Rf7+ {[%clk 0:00:18]}  Ke5 {[%clk 0:00:10]} 39. Bxd2 {[%clk 0:00:18]}  Re2+ {[%clk 0:00:09]} 40. Rf2 {[%clk 0:00:18]}  Rxf2+ {[%clk 0:00:09]} 41. Kxf2 {[%clk 0:00:17]}  Kd4 {[%clk 0:00:10]} 42. Ke2 {[%clk 0:00:17]}  e5 {[%clk 0:00:10]} 43. b4 {[%clk 0:00:17]}  Kc4 {[%clk 0:00:08]} 44. c3 {[%clk 0:00:17]}  e4 {[%clk 0:00:08]} 45. Ke3 {[%clk 0:00:17]} 1-0


[Site "https://www.chess.com"]

[Event "Titled Tuesday Blitz April 19 Early 2022"]
[White "Timofeev, Artyom"]
[Black "Visakh N R"]
[WhiteFideId "4140419"]
[BlackFideId "25012223"]
[WhiteElo "2594"]
[BlackElo "2448"]
[Result "1-0"]
[Round "10"]
[TimeControl "180+1"]
[Date "2022.04.19"]
[WhiteClock "0:00:10"]
[BlackClock "0:00:04"]

1. e4 {[%clk 0:03:00]}  c5 {[%clk 0:02:52]} 2. Nc3 {[%clk 0:02:59]}  g6 {[%clk 0:02:52]} 3. Nf3 {[%clk 0:02:58]}  Bg7 {[%clk 0:02:52]} 4. d4 {[%clk 0:02:58]}  cxd4 {[%clk 0:02:52]} 5. Nxd4 {[%clk 0:02:58]}  Nc6 {[%clk 0:02:52]} 6. Be3 {[%clk 0:02:58]}  Nf6 {[%clk 0:02:53]} 7. Bc4 {[%clk 0:02:54]}  O-O {[%clk 0:02:52]} 8. Bb3 {[%clk 0:02:55]}  Na5 {[%clk 0:02:52]} 9. Qf3 {[%clk 0:02:29]}  d6 {[%clk 0:02:48]} 10. h3 {[%clk 0:02:28]}  Nd7 {[%clk 0:02:38]} 11. O-O {[%clk 0:02:26]}  a6 {[%clk 0:02:33]} 12. Rad1 {[%clk 0:02:25]}  b5 {[%clk 0:02:32]} 13. Bd5 {[%clk 0:02:16]}  Bb7 {[%clk 0:02:27]} 14. Bxb7 {[%clk 0:02:15]}  Nxb7 {[%clk 0:02:20]} 15. Nc6 {[%clk 0:02:05]}  Ne5 {[%clk 0:02:15]} 16. Nxe5 {[%clk 0:02:01]}  Bxe5 {[%clk 0:02:16]} 17. Bd4 {[%clk 0:02:00]}  Bxd4 {[%clk 0:02:09]} 18. Rxd4 {[%clk 0:01:59]}  Rc8 {[%clk 0:02:07]} 19. e5 {[%clk 0:01:51]}  Qb6 {[%clk 0:01:54]} 20. Nd5 {[%clk 0:01:50]}  Qd8 {[%clk 0:01:41]} 21. Rfd1 {[%clk 0:01:46]}  Rxc2 {[%clk 0:01:37]} 22. Nb4 {[%clk 0:01:36]}  Rc7 {[%clk 0:01:29]} 23. Nxa6 {[%clk 0:01:22]}  Rd7 {[%clk 0:01:17]} 24. Nb4 {[%clk 0:01:22]}  Nc5 {[%clk 0:01:10]} 25. Nc6 {[%clk 0:01:15]}  Qa8 {[%clk 0:01:07]} 26. exd6 {[%clk 0:01:13]}  exd6 {[%clk 0:01:03]} 27. Rxd6 {[%clk 0:01:12]}  Rxd6 {[%clk 0:01:02]} 28. Rxd6 {[%clk 0:01:12]}  Ne6 {[%clk 0:01:00]} 29. Qf6 {[%clk 0:01:07]}  Ng7 {[%clk 0:00:54]} 30. a3 {[%clk 0:00:52]}  h6 {[%clk 0:00:47]} 31. Ne7+ {[%clk 0:00:50]}  Kh7 {[%clk 0:00:44]} 32. h4 {[%clk 0:00:47]}  Qe4 {[%clk 0:00:35]} 33. Nd5 {[%clk 0:00:44]}  Nh5 {[%clk 0:00:26]} 34. Qc3 {[%clk 0:00:37]}  Qxh4 {[%clk 0:00:23]} 35. Rd7 {[%clk 0:00:35]}  Qg4 {[%clk 0:00:06]} 36. Qc7 {[%clk 0:00:19]}  Qe6 {[%clk 0:00:02]} 37. Ne3 {[%clk 0:00:11]}  Nf6 {[%clk 0:00:02]} 38. Re7 {[%clk 0:00:11]}  Nd5 {[%clk 0:00:01]} 39. Rxe6 {[%clk 0:00:09]}  Nxc7 {[%clk 0:00:01]} 40. Rb6 {[%clk 0:00:10]}  Rd8 {[%clk 0:00:01]} 41. Rb7 {[%clk 0:00:10]}  Ne6 {[%clk 0:00:01]} 42. Rxb5 {[%clk 0:00:10]}  Kg8 {[%clk 0:00:01]} 43. a4 {[%clk 0:00:10]}  Rd2 {[%clk 0:00:02]} 44. a5 {[%clk 0:00:10]}  Rd6 {[%clk 0:00:01]} 45. Rb6 {[%clk 0:00:09]}  Rxb6 {[%clk 0:00:02]} 46. axb6 {[%clk 0:00:09]}  Nc5 {[%clk 0:00:03]} 47. b4 {[%clk 0:00:09]}  Nb7 {[%clk 0:00:03]} 48. Nc4 {[%clk 0:00:09]}  Kf8 {[%clk 0:00:04]} 49. Na5 {[%clk 0:00:10]} 1-0


[Site "https://www.chess.com"]

[Event "Titled Tuesday Blitz April 19 Early 2022"]
[White "Trost, Edvin"]
[Black "Samunenkov, Ihor"]
[WhiteFideId "1729519"]
[BlackFideId "14187086"]
[WhiteElo "2160"]
[BlackElo "2409"]
[Result "0-1"]
[Round "10"]
[TimeControl "180+1"]
[Date "2022.04.19"]
[WhiteClock "0:00:03"]
[BlackClock "0:00:14"]

1. d4 {[%clk 0:03:00]}  d5 {[%clk 0:02:58]} 2. c4 {[%clk 0:03:00]}  e6 {[%clk 0:02:58]} 3. Nc3 {[%clk 0:03:00]}  a6 {[%clk 0:02:58]} 4. cxd5 {[%clk 0:02:54]}  exd5 {[%clk 0:02:59]} 5. Nf3 {[%clk 0:02:54]}  Nf6 {[%clk 0:02:59]} 6. Bg5 {[%clk 0:02:52]}  Be6 {[%clk 0:03:00]} 7. Qb3 {[%clk 0:02:52]}  Nbd7 {[%clk 0:02:36]} 8. Qxb7 {[%clk 0:02:42]}  Rb8 {[%clk 0:02:31]} 9. Qxa6 {[%clk 0:02:43]}  Rxb2 {[%clk 0:02:31]} 10. Qd3 {[%clk 0:02:35]}  c5 {[%clk 0:02:09]} 11. dxc5 {[%clk 0:02:20]}  Bxc5 {[%clk 0:01:54]} 12. e3 {[%clk 0:02:19]}  Qa5 {[%clk 0:01:52]} 13. Rc1 {[%clk 0:01:42]}  Ne4 {[%clk 0:01:45]} 14. Qa6 {[%clk 0:00:30]}  Qxa6 {[%clk 0:01:29]} 15. Bxa6 {[%clk 0:00:31]}  Bb4 {[%clk 0:01:29]} 16. O-O {[%clk 0:00:29]}  Nxc3 {[%clk 0:01:28]} 17. a3 {[%clk 0:00:27]}  Ba5 {[%clk 0:01:28]} 18. Nd4 {[%clk 0:00:23]}  Nc5 {[%clk 0:01:22]} 19. Bb5+ {[%clk 0:00:16]}  Bd7 {[%clk 0:01:02]} 20. Bxd7+ {[%clk 0:00:10]}  Kxd7 {[%clk 0:01:03]} 21. Kh1 {[%clk 0:00:06]}  Nd3 {[%clk 0:01:02]} 22. Rc2 {[%clk 0:00:02]}  Rxc2 {[%clk 0:00:59]} 23. Nxc2 {[%clk 0:00:03]}  Ne4 {[%clk 0:01:00]} 24. Bh4 {[%clk 0:00:02]}  Rb8 {[%clk 0:00:50]} 25. f3 {[%clk 0:00:01]}  Nd2 {[%clk 0:00:43]} 26. Rd1 {[%clk 0:00:01]}  g5 {[%clk 0:00:41]} 27. Ne1 {[%clk 0:00:01]}  Nb2 {[%clk 0:00:33]} 28. Bg3 {[%clk 0:00:01]}  Nxd1 {[%clk 0:00:29]} 29. Bxb8 {[%clk 0:00:02]}  Nxe3 {[%clk 0:00:30]} 30. Nd3 {[%clk 0:00:01]}  Ndc4 {[%clk 0:00:25]} 31. Nc5+ {[%clk 0:00:01]}  Kc6 {[%clk 0:00:25]} 32. Nd3 {[%clk 0:00:01]}  d4 {[%clk 0:00:25]} 33. Be5 {[%clk 0:00:01]}  Kd5 {[%clk 0:00:25]} 34. Bg7 {[%clk 0:00:01]}  Bc7 {[%clk 0:00:25]} 35. g3 {[%clk 0:00:01]}  Ne5 {[%clk 0:00:25]} 36. g4 {[%clk 0:00:01]}  Nxd3 {[%clk 0:00:25]} 37. h4 {[%clk 0:00:01]}  gxh4 {[%clk 0:00:14]} 38. g5 {[%clk 0:00:02]}  h3 {[%clk 0:00:12]} 39. Bxd4 {[%clk 0:00:01]}  Kxd4 {[%clk 0:00:12]} 40. g6 {[%clk 0:00:02]}  hxg6 {[%clk 0:00:12]} 41. a4 {[%clk 0:00:03]}  h2 {[%clk 0:00:13]} 42. a5 {[%clk 0:00:03]}  Nf2# {[%clk 0:00:14]} 0-1


[Site "https://www.chess.com"]

[Event "Titled Tuesday Blitz April 19 Early 2022"]
[White "Tuleyeva-Aketayeva, Dana"]
[Black "Dushyant Sharma"]
[WhiteFideId "13701932"]
[BlackFideId "25065130"]
[WhiteElo "1875"]
[BlackElo "2105"]
[Result "0-1"]
[Round "10"]
[TimeControl "180+1"]
[Date "2022.04.19"]
[WhiteClock "0:01:48"]
[BlackClock "0:02:33"]

1. d4 {[%clk 0:03:00]}  d5 {[%clk 0:03:00]} 2. Nf3 {[%clk 0:03:00]}  e6 {[%clk 0:03:01]} 3. g3 {[%clk 0:03:00]}  Nf6 {[%clk 0:03:01]} 4. Bg2 {[%clk 0:03:00]}  Be7 {[%clk 0:03:02]} 5. O-O {[%clk 0:03:00]}  O-O {[%clk 0:03:03]} 6. c4 {[%clk 0:03:00]}  dxc4 {[%clk 0:03:04]} 7. Ne5 {[%clk 0:03:00]}  c5 {[%clk 0:03:05]} 8. dxc5 {[%clk 0:02:55]}  Bxc5 {[%clk 0:03:05]} 9. Nxc4 {[%clk 0:02:53]}  Qc7 {[%clk 0:03:05]} 10. Bf4 {[%clk 0:02:51]}  Bxf2+ {[%clk 0:03:04]} 11. Rxf2 {[%clk 0:02:45]}  Qxc4 {[%clk 0:03:05]} 12. Na3 {[%clk 0:02:42]}  Qa6 {[%clk 0:03:00]} 13. Qd6 {[%clk 0:02:11]}  Qxd6 {[%clk 0:02:48]} 14. Bxd6 {[%clk 0:02:12]}  Re8 {[%clk 0:02:49]} 15. Bf4 {[%clk 0:02:13]}  Nc6 {[%clk 0:02:48]} 16. Bxc6 {[%clk 0:02:03]}  bxc6 {[%clk 0:02:48]} 17. Nc4 {[%clk 0:02:03]}  Ba6 {[%clk 0:02:45]} 18. Ne5 {[%clk 0:02:00]}  c5 {[%clk 0:02:35]} 19. Bg5 {[%clk 0:01:57]}  Ne4 {[%clk 0:02:35]} 20. Nxf7 {[%clk 0:01:48]}  Nxf2 {[%clk 0:02:33]} 0-1


[Site "https://www.chess.com"]

[Event "Titled Tuesday Blitz April 19 Early 2022"]
[White "Van den Dikkenberg, Erik"]
[Black "Martic, Ivan"]
[WhiteFideId "1005880"]
[BlackFideId "929301"]
[WhiteElo "2118"]
[BlackElo "2317"]
[Result "0-1"]
[Round "10"]
[TimeControl "180+1"]
[Date "2022.04.19"]
[WhiteClock "0:02:06"]
[BlackClock "0:02:01"]

1. e4 {[%clk 0:03:00]}  e6 {[%clk 0:02:58]} 2. d4 {[%clk 0:02:58]}  d5 {[%clk 0:02:58]} 3. e5 {[%clk 0:02:59]}  c5 {[%clk 0:02:57]} 4. c3 {[%clk 0:02:59]}  Nc6 {[%clk 0:02:55]} 5. Nf3 {[%clk 0:02:59]}  Bd7 {[%clk 0:02:55]} 6. Bd3 {[%clk 0:02:58]}  cxd4 {[%clk 0:02:53]} 7. cxd4 {[%clk 0:02:58]}  Qb6 {[%clk 0:02:54]} 8. O-O {[%clk 0:02:58]}  Nxd4 {[%clk 0:02:52]} 9. Nc3 {[%clk 0:02:59]}  Nxf3+ {[%clk 0:02:49]} 10. Qxf3 {[%clk 0:02:58]}  Ne7 {[%clk 0:02:45]} 11. Re1 {[%clk 0:02:50]}  Nc6 {[%clk 0:02:32]} 12. Qg3 {[%clk 0:02:46]}  Be7 {[%clk 0:02:17]} 13. Qxg7 {[%clk 0:02:40]}  O-O-O {[%clk 0:02:17]} 14. Qxf7 {[%clk 0:02:36]}  Rhf8 {[%clk 0:02:09]} 15. Qxf8 {[%clk 0:02:11]}  Rxf8 {[%clk 0:02:06]} 16. Re2 {[%clk 0:02:10]}  Nd4 {[%clk 0:02:03]} 17. Rd2 {[%clk 0:02:09]}  Bg5 {[%clk 0:02:02]} 18. Na4 {[%clk 0:02:06]}  Bxa4 {[%clk 0:02:01]} 0-1


[Site "https://www.chess.com"]

[Event "Titled Tuesday Blitz April 19 Early 2022"]
[White "Vidonyak, Roman"]
[Black "Hoffmann, Asa"]
[WhiteFideId "14100622"]
[BlackFideId "2001470"]
[WhiteElo "2424"]
[BlackElo "2117"]
[Result "0-1"]
[Round "10"]
[TimeControl "180+1"]
[Date "2022.04.19"]
[WhiteClock "0:00:53"]
[BlackClock "0:00:48"]

1. d4 {[%clk 0:03:00]}  Nf6 {[%clk 0:02:10]} 2. c4 {[%clk 0:02:58]}  c5 {[%clk 0:02:08]} 3. d5 {[%clk 0:02:58]}  e5 {[%clk 0:02:01]} 4. Nc3 {[%clk 0:02:53]}  d6 {[%clk 0:02:01]} 5. e4 {[%clk 0:02:52]}  Be7 {[%clk 0:01:58]} 6. h3 {[%clk 0:02:50]}  Nbd7 {[%clk 0:01:56]} 7. Nf3 {[%clk 0:02:50]}  Nf8 {[%clk 0:01:56]} 8. Be3 {[%clk 0:02:50]}  Ng6 {[%clk 0:01:55]} 9. Qd2 {[%clk 0:02:46]}  O-O {[%clk 0:01:55]} 10. Bd3 {[%clk 0:02:44]}  a6 {[%clk 0:01:55]} 11. a4 {[%clk 0:02:44]}  b6 {[%clk 0:01:54]} 12. g4 {[%clk 0:02:44]}  h6 {[%clk 0:01:47]} 13. Rg1 {[%clk 0:02:43]}  Nh7 {[%clk 0:01:46]} 14. Kd1 {[%clk 0:02:41]}  Ng5 {[%clk 0:01:41]} 15. Nxg5 {[%clk 0:02:30]}  Bxg5 {[%clk 0:01:40]} 16. Kc2 {[%clk 0:02:28]}  Bd7 {[%clk 0:01:34]} 17. Raf1 {[%clk 0:02:22]}  Qf6 {[%clk 0:01:33]} 18. Ne2 {[%clk 0:02:18]}  b5 {[%clk 0:01:31]} 19. axb5 {[%clk 0:02:14]}  axb5 {[%clk 0:01:31]} 20. f4 {[%clk 0:02:07]}  exf4 {[%clk 0:01:29]} 21. Nxf4 {[%clk 0:02:06]}  Nxf4 {[%clk 0:01:25]} 22. Bxf4 {[%clk 0:02:04]}  bxc4 {[%clk 0:01:22]} 23. Bxc4 {[%clk 0:02:01]}  Bxf4 {[%clk 0:01:21]} 24. Rxf4 {[%clk 0:01:55]}  Qe5 {[%clk 0:01:20]} 25. Rgf1 {[%clk 0:01:30]}  f6 {[%clk 0:01:10]} 26. h4 {[%clk 0:01:27]}  Rfb8 {[%clk 0:01:08]} 27. Kb1 {[%clk 0:01:20]}  Rb4 {[%clk 0:01:06]} 28. g5 {[%clk 0:01:06]}  Rxc4 {[%clk 0:01:02]} 29. gxf6 {[%clk 0:01:05]}  Rxe4 {[%clk 0:00:50]} 30. fxg7 {[%clk 0:00:52]}  Rxf4 {[%clk 0:00:49]} 31. Rxf4 {[%clk 0:00:53]}  Bf5+ {[%clk 0:00:48]} 0-1


[Site "https://www.chess.com"]